Cogmind - Beta 16.1 @@@ ROGUE MODE // 2026.04.25 @ 00:42:34 Player: szymekc Result: Destroyed by Dirty Bomb Trap Performance ------------- Evolutions (5) 2500 Regions Visited (13) 2600 Robots Destroyed (159) 795 Value Destroyed (5115) 5115 Prototype IDs (54) 1080 Alien Tech Used (1) 200 Bonus (4800) 4800 TOTAL SCORE: 17090 Bonus ------- High Alert Combat Kills 178 Follower Combat Kills 222 Hunted by Unchained 500 Subatomizer Sterilization 3000 Met Data Miner 300 Met Imprinter 300 Was Imprinted 300 Cogmind --------- Core Integrity 0/1000 Matter 300/300 Energy 21/100 System Corruption 12% Temperature Cool (11) Movement Hovering (110) Ox1 Location -5/Factory Parts ------- > --- POWER (2) -------- (None) > --- PROPULSION (7) --- Gyrokinetic Inverter > --- UTILITY (7) ------ Large Storage Unit Enhanced Optical Array Experimental Signal Interpreter Core Analyzer > --- WEAPON (2) ------- (None) > --- INVENTORY (15) --- High-capacity Storage Unit Improved Weapon Cycler Heavy Proton Cannon Cooled Plasma Cannon Heavy Shock Bomb Launcher Long-range Missile Launcher Tesla Bomb Trap EM Surge Trap EM Surge Trap Fire Trap Fire Trap Peak State ------------ > --- POWER ------------ Micro Fission Core Micro Fission Core > --- PROPULSION ------- Gravmag Array Antigrav System Antigrav System Antigrav System Linear Gravjet Nuclear Pulse Thruster > --- UTILITY ---------- Improved Heat Sink Enhanced Optical Array Improved Sensor Array Experimental Signal Interpreter Improved Weapon Cycler Improved Medium Armor Plating Experimental Hacking Suite > --- WEAPON ----------- Heavy Proton Cannon Great Axe > --- INVENTORY -------- High-capacity Storage Unit Zionite Weapon Casing Heavy Shock Bomb Launcher Long-range Missile Launcher RU-N14's Throwing Claymores [Rating: 101] Favorites ----------- Power Meta Core Engine Improved Ion Engine Power Core Meta Core Propulsion Light Treads Treads Light Treads Wheel Subdweller Monowheel Hover Unit Gravmag Array Flight Unit Improved VTOL Module Utility Large Storage Unit Device Seismic Detector Storage Large Storage Unit Processor Improved Signal Interpreter Hackware System Shield Protection Improved Medium Armor Plating Weapon Spread Laser Energy Gun Spread Laser Energy Cannon Subdweller Beam Cannon Ballistic Gun Subdweller Machine Gun Launcher Long-range Missile Launcher Special Weapon Mining Laser Impact Weapon Powered Hammer Slashing Weapon Great Axe Piercing Weapon Makeshift Spear Build | -11 -10 -10 -8 -7 -7 -7 -7 -6 -6 -6 -6 -5 -5 ------- Run | Yrd Mat Sub Mat Fac Low Low Dat Pro Fac Low Zio Pro Fac Slots Evolved 10 | . . . 4 2 . . . . 2 . . . 2 Power 1 | . . . . . . . . . 1 . . . . Propulsion 4 | . . . 2 1 . . . . 1 . . . . Utility 5 | . . . 2 1 . . . . . . . . 2 Weapon . | . . . . . . . . . . . . . . Parts Attached 139 | 7 14 18 8 26 . . . 1 26 4 8 . 27 Power 14 | 1 1 3 . . . . . . 3 . . . 6 Engine 8 | 1 1 2 . . . . . . . . . . 4 Core 6 | . . 1 . . . . . . 3 . . . 2 Reactor . | . . . . . . . . . . . . . . Propulsion 39 | 2 . 9 3 5 . . . . 8 3 . . 9 Treads 5 | 2 . 3 . . . . . . . . . . . Leg . | . . . . . . . . . . . . . . Wheel 4 | . . 4 . . . . . . . . . . . Hover 14 | . . . 1 . . . . . 4 . . . 9 Flight 16 | . . 2 2 5 . . . . 4 3 . . . Utility 44 | 1 3 1 3 11 . . . . 11 . 5 . 9 Device 15 | 1 1 1 . 4 . . . . 5 . . . 3 Storage 4 | . 1 . . 2 . . . . . . . . 1 Processor 15 | . 1 . 2 3 . . . . 4 . 4 . 1 Hackware 5 | . . . 1 . . . . . 1 . 1 . 2 Protection 5 | . . . . 2 . . . . 1 . . . 2 Artifact . | . . . . . . . . . . . . . . Weapon 42 | 3 10 5 2 10 . . . 1 4 1 3 . 3 Energy Gun 13 | 3 8 . . 2 . . . . . . . . . Energy Cannon 10 | . . 3 . 5 . . . . . . . . 2 Ballistic Gun 3 | . . 2 1 . . . . . . . . . . Ballistic Cannon . | . . . . . . . . . . . . . . Launcher 6 | . . . . 1 . . . 1 2 1 1 . . Special Weapon 5 | . 1 . . 1 . . . . 1 . 1 . 1 Impact Weapon 3 | . 1 . 1 1 . . . . . . . . . Slashing Weapon 1 | . . . . . . . . . . . 1 . . Piercing Weapon 1 | . . . . . . . . . 1 . . . . Special Melee Weapon . | . . . . . . . . . . . . . . Unidentified Prototypes 27 | . 1 . 2 10 . . . . 2 1 7 . 4 Parts Lost 40 | . 1 6 . . . . . . 16 . . 1 16 Power 5 | . . 2 . . . . . . 1 . . . 2 Propulsion 21 | . . 2 . . . . . . 10 . . . 9 Utility 10 | . . 1 . . . . . . 4 . . 1 4 Weapon 4 | . 1 1 . . . . . . 1 . . . 1 Highest Loss Streak 9 | . 1 2 . . . . . . 7 . . 1 9 To Critical Strikes 1 | . . . . . . . . . 1 . . . . Average Backups 8 | 1 9 13 . 6 10 10 10 10 6 4 4 5 5 Power . | . . . . . 1 1 1 1 . . . . . Propulsion 3 | . 3 6 . 1 1 . . . . . . . . Utility 1 | . 1 1 . 1 2 3 3 3 2 2 2 2 1 Weapon 3 | . 4 4 . 2 5 5 6 6 2 1 2 3 3 Tool/Special . | . . . . . . . . . . . . . . Unused Backups 25 | . 1 8 . 3 . 3 . . 5 . 1 . 4 Power . | . . . . . . . . . . . . . . Propulsion 6 | . . 2 . 2 . 1 . . 1 . . . . Utility 7 | . . 1 . . . 2 . . 1 . 1 . 2 Weapon 12 | . 1 5 . 1 . . . . 3 . . . 2 Tool/Special . | . . . . . . . . . . . . . . Average Slot Usage (%) 85 | . 98 95 59 82 93 93 93 93 56 70 71 75 80 Engine 6 | . 13 11 . . . . . . . . . . 1 Core 3 | . . . 7 6 6 6 6 6 5 8 6 6 7 Treads 11 | . 27 20 . . . . . . . . . . . Wheel 1 | . . 5 . . . . . . . . . . . Hover 3 | . . . 4 2 . . . . 8 11 12 12 19 Flight 10 | . . . 16 32 37 37 37 37 10 13 18 18 7 Device 11 | . 14 12 . 8 12 12 12 12 8 12 9 6 12 Storage 7 | . 9 13 7 2 6 6 6 6 1 . . . 1 Processor 6 | . 2 . 9 12 12 12 12 12 11 19 18 18 12 Hackware 1 | . . . 3 3 . . . . 1 . 2 6 7 Protection 1 | . . . . 5 6 6 6 6 1 . . . 1 Energy Gun 9 | . 24 15 . . . . . . . . . . . Energy Cannon 3 | . . 6 . 2 6 6 6 6 3 2 . . 1 Ballistic Gun 1 | . . 3 3 . . . . . . . . . . Impact Weapon 2 | . 3 1 6 5 6 6 6 6 1 . . . . Peak Build Rating 101 | 6 15 37 54 70 70 71 71 71 71 73 71 69 101 Average Rating 36 | 4 11 14 46 55 70 70 71 70 52 50 61 68 81 On Entrance 51 | . 6 14 37 54 70 70 71 71 71 69 55 69 65 Avg Prop Armor Cover (%) 12 | . . 14 7 6 . . . . 9 12 19 20 11 Naked Turns 10 | . . . . . . . . . 10 . . . . Heaviest Build 57 | 8 34 42 33 32 31 31 31 31 57 38 16 15 44 Greatest Support 75 | 40 40 40 16 32 32 32 32 32 60 40 16 16 75 Greatest Overweight (x) 9 | . . 9 3 . . . . . 1 . . . 1 Average Overweight (x) . | . . . 2 . . . . . . . . . . Largest Inventory Capacity 15 | 5 15 15 15 15 10 10 10 10 10 5 5 5 15 Average Capacity 11 | 5 11 15 15 6 10 10 10 10 6 5 5 5 7 Most Carried 15 | 3 13 15 15 10 10 10 10 10 10 5 5 5 15 Average Carried 10 | 1 9 14 15 6 10 9 10 10 6 4 4 5 6 Final Capacity 15 | 5 15 15 15 10 10 10 10 10 5 5 5 5 15 Final Carried 15 | 3 13 15 15 10 10 10 10 10 5 5 5 5 11 Class Distribution -------------------- 58% | Mutant 26% | Scout 6% | Scavenger-Mutant 4% | Scavenger-Scout Dominant Class ---------------- Mutant | -10/Materials Mutant | -10/Subcaves Mutant | -8/Materials Scout | -7/Factory Scout | -7/Lower Caves Scout | -7/Lower Caves Scout | -7/Data Miner Scout | -6/Proximity Caves Mutant | -6/Factory Mutant | -6/Lower Caves Scout | -6/Zion Scout | -5/Proximity Caves Scavenger-Scout | -5/Factory Resources | -11 -10 -10 -8 -7 -7 -7 -7 -6 -6 -6 -6 -5 -5 ----------- Run | Yrd Mat Sub Mat Fac Low Low Dat Pro Fac Low Zio Pro Fac Matter Collected 3054 | 270 196 369 84 333 163 10 . 34 584 41 202 . 768 Remotely . | . . . . . . . . . . . . . . Salvage Created 5458 | 107 493 737 281 961 208 52 . 89 915 33 . . 1582 Parts 251 | 13 37 46 12 29 1 1 . 1 37 6 . . 68 Haulers Intercepted 11 | . 2 . 1 5 . . . . 1 . . . 2 Recyclers Shooed 5 | . . . . 3 . . . . 1 . . . 1 Parts Field Recycled . | . . . . . . . . . . . . . . Retrieved Matter . | . . . . . . . . . . . . . . Parts Self-Destructed 32 | . . 19 . . 7 . . 2 . 3 . 1 . Prevented 2 | . . . . . . 1 . 1 . . . . . Parts Restored . | . . . . . . . . . . . . . . Kills | -11 -10 -10 -8 -7 -7 -7 -7 -6 -6 -6 -6 -5 -5 ------- Run | Yrd Mat Sub Mat Fac Low Low Dat Pro Fac Low Zio Pro Fac Combat Hostiles Destroyed 101 | . 11 23 7 14 1 1 . 2 21 3 . . 18 Melee 11 | . . 2 4 . . . . . 4 . . . 1 Guns 25 | . 10 15 . . . . . . . . . . . Cannons 11 | . . 4 . 2 1 . . . 1 . . . 3 AOE 41 | . 1 . . 10 . . . 1 13 3 . . 13 Classes Destroyed 20 | 2 5 2 . 5 . . . 2 2 . . . 2 Worker 13 | . 1 . 2 1 . . . . 6 . . . 3 Builder 3 | . . . . 1 . . . . 1 . . . 1 Tunneler 4 | 3 . . . 1 . . . . . . . . . Hauler 11 | . 2 . 1 5 . . . . 1 . . . 2 Recycler 12 | 1 . . . 3 . . . . 2 . . . 6 Minesweeper 1 | . . . . . . . . 1 . . . . . Mechanic 3 | . . . . . . . . . . . . . 3 Operator 2 | . . . . . . . . . . . . . 2 Drone 1 | . . . . . . . . 1 . . . . . Watcher 9 | . 2 . . 6 . . . . 1 . . . . Swarmer 25 | . 3 4 4 . 1 . . . 5 3 . . 5 Cutter 2 | . . . . . . . . . 2 . . . . Grunt 23 | . 8 4 1 2 . . . 1 7 . . . . Duelist 2 | . . . . . . . . . 1 . . . 1 Protector 3 | . . . . 3 . . . . . . . . . Sentry 3 | . . 1 2 . . . . . . . . . . Specialist 4 | . . . . 2 . . . . . . . . 2 Hunter 11 | . . . . 4 . 1 . . 2 . . . 4 Programmer 13 | . . . . 3 . . . . 4 . . . 6 Subdweller 14 | . . 14 . . . . . . . . . . . Packrat 2 | . . . . . 2 . . . . . . . . Best Kill Streak 16 | 4 4 3 3 16 1 1 . 2 7 3 . . 12 Combat Bots Only 13 | . 3 3 3 13 1 1 . 1 4 3 . . 7 Max Kills in Single Turn 5 | 1 1 1 1 5 1 1 . 1 3 3 . . 4 Gunslinging . | . . . . . . . . . . . . . . Exploded 5 | . 1 . . 5 . . . 1 3 3 . . 3 Melee 1 | . . 1 1 . . . . . 1 . . . 1 Uniques/NPCs Destroyed . | . . . . . . . . . . . . . . Combat | -11 -10 -10 -8 -7 -7 -7 -7 -6 -6 -6 -6 -5 -5 -------- Run | Yrd Mat Sub Mat Fac Low Low Dat Pro Fac Low Zio Pro Fac Hostile Shots Fired 649 | . 53 85 35 58 10 . . 4 202 4 . 6 192 Missed 247 | . 18 25 14 29 5 . . 3 74 2 . 3 74 Hits 402 | . 35 60 21 29 5 . . 1 128 2 . 3 118 Melee 8 | . . . . . . . . . 8 . . . . Projectile 394 | . 35 60 21 29 5 . . 1 120 2 . 3 118 AOE 6 | . . 4 . . . . . . 2 . . . . Critical Strikes 21 | . 1 1 . . . . . . 16 . . . 3 Damage Taken 7111 | . 397 1194 236 489 46 . . 85 2202 30 . 43 2389 Core 2235 | . 39 146 49 76 11 . . 85 807 . . 16 1006 Absorbed by Shields 36 | . . . . . . . . . 36 . . . . Regen/Repaired (Parts) 193 | . 193 . . . . . . . . . . . . Core Remaining (%) 59 | 100 . 26 91 . . . . 75 . . . 3 . Volleys Fired 227 | 5 35 66 . 24 2 2 . 5 54 2 . . 32 Largest 2 | 2 2 2 . 1 1 1 . 1 1 1 . . 1 Hottest 160 | 80 130 160 . 120 90 90 . 90 120 120 . . 105 Shots Fired 326 | 10 67 128 . 24 2 2 . 5 54 3 . . 31 Gun 166 | 10 66 90 . . . . . . . . . . . Cannon 116 | . . 38 . 16 2 2 . 4 34 2 . . 18 Launcher 37 | . . . . 8 . . . 1 19 1 . . 8 Special 7 | . 1 . . . . . . . 1 . . . 5 Kinetic 15 | . . 15 . . . . . . . . . . . Thermal 225 | 10 24 113 . 16 2 2 . 4 34 2 . . 18 Explosive 42 | . . . . 8 . . . 1 19 1 . . 13 Electromagnetic 43 | . 43 . . . . . . . . . . . . Robot Hit Streak 20 | 3 6 20 . 6 1 . . . 8 . . . 4 Robot Miss Streak 7 | 1 7 4 . 2 1 . . . 3 . . . 2 Penetration Max . | . . . . . . . . . . . . . . Secondary Targets 3 | . 1 2 . . . . . . . . . . . Max Gunslinging Chain 1 | . 1 1 . . . . . . . . . . . Shots Hit Robots 287 | 5 42 101 17 39 3 1 . 4 41 . . . 34 Core Hits 285 | 5 39 107 4 46 2 . . . 41 4 . . 37 Critical Kills 8 | . . 3 3 1 . . . . 1 . . . . Critical Parts Destroyed 12 | . . . 2 5 . . . 1 4 . . . . Critical Strikes 25 | . . 3 5 7 . . . 1 9 . . . . Burn 4 | . . . . 1 . . . . 3 . . . . Meltdown 2 | . . 2 . . . . . . . . . . . Smash 18 | . . 1 5 6 . . . 1 5 . . . . Impale 1 | . . . . . . . . . 1 . . . . Melee Attacks 188 | . 9 30 21 53 3 5 . 8 31 . . 2 26 Impact 154 | . 9 30 21 53 3 5 . 8 25 . . . . Slashing 28 | . . . . . . . . . . . . 2 26 Piercing 6 | . . . . . . . . . 6 . . . . Sneak Attacks 41 | . . . 4 18 2 1 . 1 2 . . . 13 Combat Hostiles 3 | . . . . 1 . 1 . . . . . . 1 Follow-up Attacks . | . . . . . . . . . . . . . . Damage Inflicted 17065 | 67 688 1885 485 4697 264 114 . 227 3811 242 . . 4585 Guns 1936 | 67 584 1285 . . . . . . . . . . . Cannons 1225 | . . 394 . 76 28 . . . 288 . . . 439 Explosions 7714 | . 102 . . 2254 . . . 46 2425 242 . . 2645 Melee 6036 | . . 206 485 2367 236 114 . 181 1098 . . . 1349 Ramming 2 | . 2 . . . . . . . . . . . . Kinetic 187 | . . 187 . . . . . . . . . . . Thermal 2865 | 67 347 1492 . 159 28 . . . 333 . . . 439 Explosive 7484 | . . . . 2171 . . . 46 2380 242 . . 2645 Electromagnetic 339 | . 339 . . . . . . . . . . . . Impact 4601 | . . 206 485 2367 236 114 . 181 1012 . . . . Slashing 1501 | . . . . . . . . . . . . . 1501 Piercing 86 | . . . . . . . . . 86 . . . . Highest Corruption 12 | . . . . 3 3 3 3 4 8 8 8 . 12 Average Corruption 5 | . . . . 2 3 3 3 3 6 8 8 . 8 Corruption Purged . | . . . . . . . . . . . . . . Corruption Blocked . | . . . . . . . . . . . . . . Effects 56 | . . . . 5 9 3 . 2 22 2 1 . 12 Message Errors 17 | . . . . 1 3 2 . . 5 1 1 . 4 Matter Fused 16 | . . . . 1 1 . . . 9 . . . 5 Heat Flow Errors 2 | . . . . . . . . 1 1 . . . . Energy Discharges 4 | . . . . 1 . 1 . . 2 . . . . Parts Rejected 3 | . . . . . . . . . 2 . . . 1 Data Loss (minor) 10 | . . . . 2 5 . . 1 1 . . . 1 Data Loss (major) 1 | . . . . . . . . . 1 . . . . Misfires 1 | . . . . . . . . . . 1 . . . Alerts 1 | . . . . . . . . . 1 . . . . Weapon Failures 1 | . . . . . . . . . . . . . 1 Overload Shots 1 | . . . . . . . . . . . . . 1 Effects 1 | . . . . . . . . . . . . . 1 Energy Bleed 1 | . . . . . . . . . . . . . 1 Overflow Damage 2524 | . . 11 152 995 131 104 . 80 456 47 . . 548 Projectiles 66 | . . . . . . . . . 2 . . . 64 Explosions 274 | . . . . 43 . . . 16 120 47 . . 48 Melee 2184 | . . 11 152 952 131 104 . 64 334 . . . 436 Knockbacks 23 | . . 1 2 10 1 1 . 2 6 . . . . Impact 23 | . . 1 2 10 1 1 . 2 6 . . . . Kinetic . | . . . . . . . . . . . . . . Secondary . | . . . . . . . . . . . . . . Self-Inflicted Damage 106 | . 15 . . 19 . . . . . . . . 72 Shots 4 | . 1 . . 1 . . . . . . . . 2 Rammed 1 | . 1 . . . . . . . . . . . . Targets Rammed 1 | . 1 . . . . . . . . . . . . Kicked . | . . . . . . . . . . . . . . Crushed . | . . . . . . . . . . . . . . Highest Temperature 613 | 54 313 126 . 160 5 . . 157 613 95 . . 80 Average Temperature 78 | 23 91 33 . 69 3 . . 64 154 46 . . 7 Received Heat Transfer 1300 | . 153 231 81 33 6 . . . 418 . . . 378 Effects 8 | . 3 . . . . . . . 5 . . . . Shutdowns 1 | . . . . . . . . . 1 . . . . Energy Bleed 1 | . . . . . . . . . 1 . . . . Interference 3 | . 3 . . . . . . . . . . . . Short Circuit 1 | . . . . . . . . . 1 . . . . Damage (minor) 1 | . . . . . . . . . 1 . . . . Damage (core) 1 | . . . . . . . . . 1 . . . . Siege Activations . | . . . . . . . . . . . . . . Martial Activations . | . . . . . . . . . . . . . . Shielding Activations . | . . . . . . . . . . . . . . Robots Disrupted . | . . . . . . . . . . . . . . Combat Hostiles . | . . . . . . . . . . . . . . Robots Corrupted 23 | . . . 5 10 1 1 . 2 4 . . . . Combat Hostiles 9 | . . . 3 2 . 1 . 1 2 . . . . Parts Fried 22 | . 1 . 6 11 . . . 3 1 . . . . Impact Corruptions 50 | . . 1 7 24 4 1 . 2 11 . . . . Robots Melted 4 | . . 2 . . . . . . 1 . . . 1 Combat Hostiles 4 | . . 2 . . . . . . 1 . . . 1 Parts Melted 14 | . . 4 . 1 . . . . 8 . . . 1 Heat Transferred 4444 | 150 465 1888 . 327 37 . . . 1047 . . . 530 Parts Sabotaged . | . . . . . . . . . . . . . . Parts Stolen . | . . . . . . . . . . . . . . Parts Stripped . | . . . . . . . . . . . . . . Power Chain Reactions 2 | . 2 . . . . . . . . . . . . Alert | -11 -10 -10 -8 -7 -7 -7 -7 -6 -6 -6 -6 -5 -5 ------- Run | Yrd Mat Sub Mat Fac Low Low Dat Pro Fac Low Zio Pro Fac Maximum Alert Level 3 | . . . . 2 . . . . 2 . . . 3 Low Security (%) 66 | 100 100 . 100 74 . . . . 20 . . . 20 Level 1 20 | . . . . 1 . . . . 59 . . . 56 Level 2 11 | . . . . 23 . . . . 20 . . . 17 Level 3 . | . . . . . . . . . . . . . 6 Level 4 . | . . . . . . . . . . . . . . Level 5 . | . . . . . . . . . . . . . . High Security . | . . . . . . . . . . . . . . Max Security . | . . . . . . . . . . . . . . Sterilizations 1 | . . . . 1 . . . . . . . . . Peak Influence 805 | 10 105 . 191 540 . . . . 456 . . . 805 Initial 72 | . . . 14 72 . . . . . . . . . Average 157 | 2 22 . 54 157 . . . . 308 . . . 338 Influence Increases 4472 | 20 337 210 280 837 95 30 . 45 1166 70 . 60 1322 Destroy 0b10 Robot/C 1820 | . 220 180 140 220 20 20 . 20 420 60 . 60 460 Destroy 0b10 Robot/NC 315 | 20 25 . 15 100 . . . 10 55 . . . 90 Destroy Leader 392 | . 58 30 42 72 . 10 . . 84 10 . . 86 Allied During Kill 29 | . . . . . . . . . . . . . 29 Trap Triggered on 0b10 70 | . . . . . . . . . . . . . 70 Successful Hack 160 | . 11 . 22 89 . . . . 38 . . . . Disable Machine 300 | . 15 . . 30 . . . . 75 . . . 180 Anti-Garrison Action 150 | . . . . 150 . . . . . . . . . Destroy Structure 576 | . 8 . 1 86 . . . . 149 . . . 332 Partial Spotted 105 | . . . . 45 . . . . 30 . . . 30 Lose Combat Pursuer 555 | . . . 60 45 75 . . 15 315 . . . 45 Influence Decreases 3677 | 20 337 182 148 517 328 218 59 45 721 196 319 60 527 Entered New Map 872 | . . . 14 88 178 48 59 . . 166 319 . . Time Decay 2234 | 20 327 172 134 420 150 170 . 45 419 30 . 10 337 Lost Part 332 | . 10 10 . . . . . . 152 . . . 160 Lost Ally 80 | . . . . . . . . . . . . 50 30 Purge Threat 159 | . . . . 9 . . . . 150 . . . . Squads Dispatched 29 | . 2 . . 10 . . . . 12 . . . 5 Investigation 7 | . 1 . . 1 . . . . 4 . . . 1 Extermination 10 | . . . . 4 . . . . 3 . . . 3 Reinforcement 9 | . 1 . . 2 . . . . 5 . . . 1 Assault 2 | . . . . 2 . . . . . . . . . Garrison 1 | . . . . 1 . . . . . . . . . Intercept . | . . . . . . . . . . . . . . Searches Triggered . | . . . . . . . . . . . . . . Unchained Authorized 2 | . . . . . . . . . 1 . . . 1 Construction Impeded 2 | . . . . 1 . . . . 1 . . . . Haulers Reinforced 2 | . . . . 1 . . . . 1 . . . . Active Scanning Responses . | . . . . . . . . . . . . . . Cargo Convoy Interrupts 2 | . . . . 1 . . . . . . . . 1 Stealth | -11 -10 -10 -8 -7 -7 -7 -7 -6 -6 -6 -6 -5 -5 --------- Run | Yrd Mat Sub Mat Fac Low Low Dat Pro Fac Low Zio Pro Fac Distress Signals 4 | . 1 . . . . . . 1 2 . . . . Communications Jammed . | . . . . . . . . . . . . . . Distress Signals . | . . . . . . . . . . . . . . Times Spotted 195 | . 19 23 15 28 7 1 . 3 48 4 . 4 43 Peak Tracking Total 12 | . 3 2 6 12 4 . . 1 7 4 . 4 9 Tactical Retreats 20 | . . . 2 2 2 . . 1 11 . . . 2 Traps | -11 -10 -10 -8 -7 -7 -7 -7 -6 -6 -6 -6 -5 -5 ------- Run | Yrd Mat Sub Mat Fac Low Low Dat Pro Fac Low Zio Pro Fac Traps Triggered 14 | . 3 2 . . . . . 1 1 . . . 7 Indirectly . | . . . . . . . . . . . . . . Trap Hack Attempts . | . . . . . . . . . . . . . . Triggered . | . . . . . . . . . . . . . . Disarmed . | . . . . . . . . . . . . . . Reprogrammed . | . . . . . . . . . . . . . . Reused 7 | . . . . . . . . . . . . . 7 Traps Extracted . | . . . . . . . . . . . . . . Installed 12 | . . . . . . . . 5 . . . . 7 Triggered 7 | . . . . . . . . . . . . . 7 Most Traps Carried 9 | . . . . . . . . . . . . . 9 Machines | -11 -10 -10 -8 -7 -7 -7 -7 -6 -6 -6 -6 -5 -5 ---------- Run | Yrd Mat Sub Mat Fac Low Low Dat Pro Fac Low Zio Pro Fac Machines Disabled 24 | . 2 1 . 3 . 1 . . 5 . . . 12 Max in Single Turn 2 | . 1 1 . 1 . 1 . . 2 . . . 2 Garrison Access 4 | . . . . 4 . . . . . . . . . Machines Repaired . | . . . . . . . . . . . . . . Machines Dismantled . | . . . . . . . . . . . . . . Machines Sabotaged . | . . . . . . . . . . . . . . Overloaded Fab Kills . | . . . . . . . . . . . . . . Hacking | -11 -10 -10 -8 -7 -7 -7 -7 -6 -6 -6 -6 -5 -5 --------- Run | Yrd Mat Sub Mat Fac Low Low Dat Pro Fac Low Zio Pro Fac Machines Accessed 47 | . 9 4 1 20 . 2 4 . 6 . 1 . . Terminals 20 | . 7 . 1 10 . . . . 2 . . . . Fabricators 5 | . . . . 2 . . . . 3 . . . . Repair Stations 1 | . 1 . . . . . . . . . . . . Recycling Units 2 | . 1 . . 1 . . . . . . . . . Scanalyzers 4 | . . . . 3 . . . . 1 . . . . Garrison Access 4 | . . . . 4 . . . . . . . . . Total Hacks 138 | . 28 7 6 45 . 2 28 . 20 . 2 . . Successful 89 | . 18 7 4 18 . 2 28 . 10 . 2 . . Failed 49 | . 10 . 2 27 . . . . 10 . . . . Catastrophic 9 | . . . . 8 . . . . 1 . . . . Database Lockouts . | . . . . . . . . . . . . . . Manual 47 | . 14 . 5 14 . . . . 4 . . . 10 Terminals 51 | . 21 . 6 19 . . . . 5 . . . . Fabricators 14 | . . . . 5 . . . . 9 . . . . Repair Stations 6 | . 6 . . . . . . . . . . . . Recycling Units 3 | . 1 . . 2 . . . . . . . . . Scanalyzers 16 | . . . . 10 . . . . 6 . . . . Garrison Access 9 | . . . . 9 . . . . . . . . . Terminal Hacks 51 | . 4 7 3 2 . 2 28 . 3 . 2 . . Record 15 | . . 4 . . . . 11 . . . . . . Part Schematic 11 | . . . . . . . 9 . . . 2 . . Robot Schematic 5 | . . . . . . . 5 . . . . . . Prototype ID Bank 6 | . 2 . 1 . . . 3 . . . . . . Open Door 3 | . . 1 . . . 2 . . . . . . . Level Access Points 1 | . . . 1 . . . . . . . . . . Branch Access Points 1 | . . . 1 . . . . . . . . . . Terminal Index 1 | . 1 . . . . . . . . . . . . Unreport Threat 2 | . . . . 1 . . . . 1 . . . . Hauler Manifests 2 | . . . . 1 . . . . 1 . . . . Registered Components 2 | . 1 . . . . . . . 1 . . . . Proto ID Catalog 1 | . . 1 . . . . . . . . . . . Release Object 1 | . . 1 . . . . . . . . . . . Fabricator Hacks 6 | . . . . 1 . . . . 5 . . . . Network Status 2 | . . . . 1 . . . . 1 . . . . Load Schematic 2 | . . . . . . . . . 2 . . . . Build 2 | . . . . . . . . . 2 . . . . Repair Station Hacks 6 | . 6 . . . . . . . . . . . . Scan Component 3 | . 3 . . . . . . . . . . . . Repair 3 | . 3 . . . . . . . . . . . . Recycling Unit Hacks 2 | . 1 . . 1 . . . . . . . . . Retrieve Components 2 | . 1 . . 1 . . . . . . . . . Scanalyzer 9 | . . . . 7 . . . . 2 . . . . Insert Component 3 | . . . . 1 . . . . 2 . . . . Analyze 1 | . . . . 1 . . . . . . . . . Retrieve Study 5 | . . . . 5 . . . . . . . . . Garrison Access Hacks 2 | . . . . 2 . . . . . . . . . Seal Access 2 | . . . . 2 . . . . . . . . . Unauthorized Hacks 13 | . 7 . 1 5 . . . . . . . . . Terminals 12 | . 7 . 1 4 . . . . . . . . . Track 1 | . . . . 1 . . . . . . . . . Botnet 4 | . 1 . 1 2 . . . . . . . . . Operators 1 | . . . . 1 . . . . . . . . . Skim 6 | . 6 . . . . . . . . . . . . Fabricators 1 | . . . . 1 . . . . . . . . . Haulers 1 | . . . . 1 . . . . . . . . . Repair Stations . | . . . . . . . . . . . . . . Recycling Units . | . . . . . . . . . . . . . . Scanalyzers . | . . . . . . . . . . . . . . Garrison Access . | . . . . . . . . . . . . . . Data Cores Recovered . | . . . . . . . . . . . . . . Used . | . . . . . . . . . . . . . . Hacking Detections 31 | . 7 . 1 17 . . . . 6 . . . . Full Trace Events 5 | . . . . 1 . . . . 4 . . . . Feedback Events 1 | . . . . . . . . . 1 . . . . Corruption 1 | . . . . . . . . . 1 . . . . Feedback Blocked . | . . . . . . . . . . . . . . Robot Schematics Acquired 5 | . . . . . . . 5 . . . . . . Robots Built . | . . . . . . . . . . . . . . Authchips . | . . . . . . . . . . . . . . Time . | . . . . . . . . . . . . . . Total Robot Build Rating . | . . . . . . . . . . . . . . Part Schematics Acquired 12 | . . . . 1 . . 9 . . . 2 . . Parts Built 3 | . . . . . . . . . 3 . . . . Authchips . | . . . . . . . . . . . . . . Time 210 | . . . . . . . . . 210 . . . . Total Part Build Rating 19 | . . . . . . . . . 19 . . . . Part Studies Acquired 5 | . . . . 5 . . . . . . . . . Parts Repaired 3 | . 3 . . . . . . . . . . . . Time 84 | . 84 . . . . . . . . . . . . Parts Recycled . | . . . . . . . . . . . . . . Recycled Matter . | . . . . . . . . . . . . . . Retrieved Matter . | . . . . . . . . . . . . . . Retrieved Components 4 | . 3 . . 1 . . . . . . . . . Parts Scanalyzed 2 | . . . . 1 . . . . 1 . . . . Part Schematics Acquired 1 | . . . . 1 . . . . . . . . . Parts Damaged 1 | . . . . . . . . . 1 . . . . Bothacking | -11 -10 -10 -8 -7 -7 -7 -7 -6 -6 -6 -6 -5 -5 ------------ Run | Yrd Mat Sub Mat Fac Low Low Dat Pro Fac Low Zio Pro Fac Used RIF Installer . | . . . . . . . . . . . . . . Robots Hacked . | . . . . . . . . . . . . . . Non-combat . | . . . . . . . . . . . . . . Combat . | . . . . . . . . . . . . . . Robot Hacks Applied . | . . . . . . . . . . . . . . Relay Couplers Released 7 | . . . . 4 . . . . 3 . . . . Machine Destruction 4 | . . . . 4 . . . . . . . . . Programmers 3 | . . . . . . . . . 3 . . . . Fabnet Peak Effective % . | . . . . . . . . . . . . . . Robots Rewired . | . . . . . . . . . . . . . . Allies Hacked . | . . . . . . . . . . . . . . Hacks Repelled . | . . . . . . . . . . . . . . Allies | -11 -10 -10 -8 -7 -7 -7 -7 -6 -6 -6 -6 -5 -5 -------- Run | Yrd Mat Sub Mat Fac Low Low Dat Pro Fac Low Zio Pro Fac Total Allies 10 | . . . . . . . . . . . 7 . 3 Largest Group 7 | . . . . . . . . . . . 7 7 2 Highest-Rated Group 244 | . . . . . . . . . . . 244 244 170 Highest-Rated Ally 85 | . . . . . . . . . . . 40 40 85 Zionite Dispatches 2 | . . . . . . . . . . . . . 2 Heavy 1 | . . . . . . . . . . . . . 1 Trap Resupply 1 | . . . . . . . . . . . . . 1 Total Orders 1 | . . . . . . . . . . . . . 1 DROP 1 | . . . . . . . . . . . . . 1 Ally Attacks 37 | . . . . . . . . . . . . 23 14 Total Damage 1091 | . . . . . . . . . . . . 351 740 Kills 9 | . . . . . . . . . . . . 3 6 Allies Corrupted 2 | . . . . . . . . . . . . . 2 Allies Melted . | . . . . . . . . . . . . . . Intel | -11 -10 -10 -8 -7 -7 -7 -7 -6 -6 -6 -6 -5 -5 ------- Run | Yrd Mat Sub Mat Fac Low Low Dat Pro Fac Low Zio Pro Fac Active Infowar (turns) 8478 | 44 565 2977 501 1098 307 355 16 120 1012 66 459 106 852 Optics 5226 | . 337 . 501 1095 307 355 16 120 1012 66 459 106 852 Sensors 3560 | . . . . 997 307 355 16 120 313 66 459 106 821 Seismic 4024 | 44 565 2977 . . . . . . 410 28 . . . Robot Analysis Total . | . . . . . . . . . . . . . . Derelict Logs Recovered 7 | . . 1 . . 1 3 . 1 . . . 1 . Drone Launches 1 | . . . . . . . . . . . . . 1 Drone Recoveries . | . . . . . . . . . . . . . . Zionite Intel Received 1 | . . . . . . . . . . . . . 1 Depthwide Sectors/0 1 | . . . . . . . . . . . . . 1 Exploration | -11 -10 -10 -8 -7 -7 -7 -7 -6 -6 -6 -6 -5 -5 ------------- Run | Yrd Mat Sub Mat Fac Low Low Dat Pro Fac Low Zio Pro Fac Turns Passed 10289 | 121 1758 3487 515 1098 307 355 16 120 1029 66 459 106 852 Spaces Moved 12367 | 61 683 1987 192 2349 981 1144 77 359 1717 135 863 266 1553 Core 33 | 4 . 1 . . . . . . 28 . . . . Treads 1763 | 57 683 1023 . . . . . . . . . . . Legs . | . . . . . . . . . . . . . . Wheels 911 | . . 911 . . . . . . . . . . . Hover 1509 | . . . 54 . . . . . 622 10 . . 823 Flight 8151 | . . 52 138 2349 981 1144 77 359 1067 125 863 266 730 Fastest Speed 20 | 50 160 120 108 20 20 20 20 20 20 30 30 30 30 Average Speed 58 | 152 160 147 227 23 20 20 20 20 36 31 30 30 37 Slowest Speed 500 | 160 160 500 272 32 20 20 20 20 109 56 30 30 110 Overloaded Moves 16 | . . . . . . . . . 4 . . . 12 Propulsion Burnouts . | . . . . . . . . . . . . . . Robots Hopped 23 | . . . . 8 1 1 . . 13 . . . . Potential Cave-ins 6 | . . . . . . . . . 4 . . . 2 Cave-ins Triggered . | . . . . . . . . . . . . . . Exploration Rate (%) 57 | 4 96 87 23 65 96 98 72 41 34 12 89 60 32 Regions Visited 13 Branch Regions 8 Pre-discovered Areas 13 | . 1 . . . 1 . 1 . . . 1 . 9 Known Exits Taken 12 | . 1 1 1 1 1 1 1 1 1 1 1 1 . Unknown Exits Taken 1 | 1 . . . . . . . . . . . . . Scrap Searched 26 | . . 13 . . 3 3 . 3 . . 4 . . Spaces Dug 225 | . 6 . 1 27 1 4 . 22 37 17 . 2 108 Terrain Destroyed 548 | . 11 8 1 112 1 6 . 26 169 18 . 2 194 Melee 38 | . 5 . 1 14 1 4 . 4 3 . . 2 4 Projectile 50 | . 1 8 . 3 . 2 . 4 22 2 . . 8 AOE 460 | . 5 . . 95 . . . 18 144 16 . . 182 Terrain Rammed . | . . . . . . . . . . . . . . Walls Destroyed . | . . . . . . . . . . . . . . Machines Disabled . | . . . . . . . . . . . . . . Actions | -11 -10 -10 -8 -7 -7 -7 -7 -6 -6 -6 -6 -5 -5 --------- Run | Yrd Mat Sub Mat Fac Low Low Dat Pro Fac Low Zio Pro Fac Total 14733 | 75 1256 2372 230 2756 1082 1260 76 386 1986 156 1064 287 1747 Wait 1505 | . 480 209 6 253 98 97 . 8 115 2 177 20 40 Move 12310 | 60 682 1986 191 2331 978 1141 76 358 1693 134 862 265 1553 Hop 20 | . . . . 8 1 1 . . 10 . . . . Pick Up 95 | 3 15 17 . 17 . 6 . . 15 1 5 . 16 Fast Attach 122 | 6 8 4 9 23 . 1 . . 27 5 8 . 31 Attach 33 | . 1 7 . 4 . . . . 12 4 . . 5 Detach 29 | . . 3 . 10 . . . . 4 3 4 . 5 Swap 71 | 1 17 19 . 9 . . . 2 10 . . . 13 Drop 120 | . 8 31 3 23 . 7 . . 16 5 8 . 19 Fire 227 | 5 35 66 . 24 2 2 . 5 54 2 . . 32 Melee 187 | . 9 30 21 53 3 5 . 8 30 . . 2 26 Ram . | . . . . . . . . . . . . . . Kick . | . . . . . . . . . . . . . . Crush 1 | . 1 . . . . . . . . . . . . Escape Stasis . | . . . . . . . . . . . . . . Rewire . | . . . . . . . . . . . . . . Trap 12 | . . . . . . . . 5 . . . . 7 Miscellaneous 1 | . . . . 1 . . . . . . . . . Route ------- -11/Scrapyard -10/Materials (discovered 5 exits: *Mat x3 / [*Min] / *Sub) -10/Subcaves (discovered 2 exits: *Mat x2) -8/Materials (discovered 3 exits: *Fac x3) -7/Factory (discovered 5 exits: *Fac x3 / *Low x2) -7/Lower Caves -7/Lower Caves (discovered 2 exits: *Fac / *Dat) -7/Data Miner -6/Proximity Caves -6/Factory (discovered 5 exits: *Fac x3 / *Low x2) -6/Lower Caves -6/Zion -5/Proximity Caves -5/Factory History --------- Turn | Location | Event 7 | -11/Scrapyard | Discovered new exit (range 14) 122 | -11/Scrapyard | Entered Materials 317 | -10/Materials | Build established: Mutant 565 | -10/Materials | Discovered new exit (range 17) 1045 | -10/Materials | Discovered new exit (range 16) 1258 | -10/Materials | Repaired Lgt. Treads 1286 | -10/Materials | Repaired Lgt. Treads 1319 | -10/Materials | Repaired VTOL Module 1368 | -10/Materials | Discovered new exit (range 14) 1496 | -10/Materials | Discovered new exit (range 15) 1535 | -10/Materials | Discovered new exit (range 3) 1633 | -10/Materials | Learned Storage security intel 1686 | -10/Materials | Identified exit to Materials 1686 | -10/Materials | Identified exit to Subcaves 1728 | -10/Materials | Learned 2 Materials zone layouts 1761 | -10/Materials | Learned location of Subcaves (-10) 1880 | -10/Materials | Entered Subcaves 1881 | -10/Subcaves | Approached by a straggling Scientist 1881 | -10/Subcaves | Identified exit to Materials 1896 | -10/Subcaves | Shifting Twisted Machinery released Sub. Monowheel 1898 | -10/Subcaves | Shifting Twisted Machinery released Barrage Gun 2024 | -10/Subcaves | Shifting Twisted Machinery released Mak. Power Source 2064 | -10/Subcaves | Disturbed a concealed Subdweller 2287 | -10/Subcaves | Shifting Twisted Machinery released Sub. Shrapnel Launcher 2329 | -10/Subcaves | Visited Clippyterm 2334 | -10/Subcaves | Learned 40 Factory zone layouts 2334 | -10/Subcaves | Learned Factory garrison access intel 2368 | -10/Subcaves | Shifting Twisted Machinery released Piercing Trap 2864 | -10/Subcaves | A swath of the cavern ceiling suddenly collapsed 3531 | -10/Subcaves | Visited 4L-MR0's lab 3549 | -10/Subcaves | Found Meta Core 3857 | -10/Subcaves | Core integrity fell below 50% 4858 | -10/Subcaves | Build established: Scavenger-Mutant 4874 | -10/Subcaves | A swath of the cavern ceiling suddenly collapsed 5203 | -10/Subcaves | Attached Meta Core, gained temporary slots: Propulsion, Utility, Weapon 5244 | -10/Subcaves | Found SUBCON Basin 5367 | -10/Subcaves | Entered Materials 5367 | -8/Materials | Evolved 4 slots: Propulsion x2, Utility x2 5421 | -8/Materials | Build established: Mutant 5524 | -8/Materials | Identified exit to Factory 5882 | -8/Materials | Entered Factory 5882 | -7/Factory | Evolved 2 slots: Propulsion x1, Utility x1 5883 | -7/Factory | Identified exit to Factory 5883 | -7/Factory | Identified exit to Lower Caves 5883 | -7/Factory | Released subatomizers from SUBCON Basin 5884 | -7/Factory | Loaded intel: 4 garrison access locations 6280 | -7/Factory | Build established: Scout 6652 | -7/Factory | Discovered exit to Lower Caves (range 6) 6690 | -7/Factory | Cargo convoy interrupted 6693 | -7/Factory | Garrison activated, responded to threat 6714 | -7/Factory | Found Prototype Energy Cannon 6714 | -7/Factory | Identified Exp. Thermic Cannon 6756 | -7/Factory | Destroyed 13 combat bots 6797 | -7/Factory | Sterilization system engaged 6797 | -7/Factory | Non-combat units ordered to evacuate 6897 | -7/Factory | Combat units ordered to evacuate 6980 | -7/Factory | Entered Lower Caves 7014 | -7/Lower Caves | Learned location of Extension (-5) 7057 | -7/Lower Caves | Encountered a Warlord checkpoint 7217 | -7/Lower Caves | Attracted the attention of an 0b10 checkpoint 7227 | -7/Lower Caves | Lost 3 allies 7271 | -7/Lower Caves | Discovered new exit (range 18) 7287 | -7/Lower Caves | Identified exit to Lower Caves 7287 | -7/Lower Caves | Entered another Lower Caves area 7305 | -7/Lower Caves | Discovered exit to Factory (range 14) 7453 | -7/Lower Caves | Discovered new exit (range 15) 7455 | -7/Lower Caves | Identified exit to Data Miner 7488 | -7/Lower Caves | Learned Factory security intel 7547 | -7/Lower Caves | Learned location of 1 exit from Factory 7642 | -7/Lower Caves | Entered Data Miner 7642 | -7/Data Miner | Discovered new exit (range 6) 7646 | -7/Data Miner | Met Data Miner 7652 | -7/Data Miner | Learned location of Section 7 (-2) 7652 | -7/Data Miner | Acquired the access code to Warlord's prototype stash 7654 | -7/Data Miner | Received God Mode back door access code from Data Miner 7658 | -7/Data Miner | Identified exit to Proximity Caves 7658 | -7/Data Miner | Entered Proximity Caves 7741 | -6/Proximity Caves | Learned location of 2 exits from Factory 7760 | -6/Proximity Caves | Discovered exit to Factory (range 16) 7773 | -6/Proximity Caves | Spotted B-75 Beast 7778 | -6/Proximity Caves | Entered Factory 7778 | -6/Factory | Evolved 2 slots: Power x1, Propulsion x1 7779 | -6/Factory | Identified exit to Lower Caves 7780 | -6/Factory | Identified exit to Factory 7955 | -6/Factory | Fabricated Adv. Hardlight Generator? 8080 | -6/Factory | Fabricated Cld. Cesium-ion Thruster? 8090 | -6/Factory | Lost 3 parts (1n2u) 8119 | -6/Factory | Released all parts (6) 8129 | -6/Factory | Core integrity fell below 50% 8148 | -6/Factory | Lost 7 parts (6n1u) 8159 | -6/Factory | Discovered exit to Lower Caves (range 4) 8368 | -6/Factory | Build established: Mutant 8397 | -6/Factory | Core integrity fell below 20% 8624 | -6/Factory | Unchained authorized (GL-D0S) 8807 | -6/Factory | Entered Lower Caves 8848 | -6/Lower Caves | Found Alien Artifact 8848 | -6/Lower Caves | Identified Core Expander 8848 | -6/Lower Caves | Installed Core Expander, added new Propulsion slot 8869 | -6/Lower Caves | A Derelict revealed a hidden shortcut to a safe place 8872 | -6/Lower Caves | Identified exit to Zion 8873 | -6/Lower Caves | Entered Zion 8892 | -6/Zion | System corruption cleaned by Quarantine Array 8904 | -6/Zion | Discovered new exit (range 13) 8908 | -6/Zion | Identified exit to Proximity Caves 8923 | -6/Zion | Received a visual enhancement algorithm 8976 | -6/Zion | Gained Derelict followers 9009 | -6/Zion | Met Imprinter 9014 | -6/Zion | Imprinted 9016 | -6/Zion | Declared Zion's savior 9029 | -6/Zion | Given the Hacking Drone Bay 9030 | -6/Zion | Found Prototype Device 9044 | -6/Zion | Found Prototype Special Weapon 9044 | -6/Zion | Identified RU-N14's Throwing Claymores 9059 | -6/Zion | Found RU-N14's Throwing Claymores 9097 | -6/Zion | Build established: Scout 9100 | -6/Zion | Given A8's code to call for help 9120 | -6/Zion | Found Prototype Processor 9120 | -6/Zion | Identified Exp. Signal Interpreter 9122 | -6/Zion | Found Prototype Processor 9122 | -6/Zion | Identified Exp. Armor Integrity Analyzer 9128 | -6/Zion | Found Prototype Processor 9128 | -6/Zion | Identified Exp. Melee Analysis Suite 9130 | -6/Zion | Found Prototype Hackware 9130 | -6/Zion | Identified Exp. Hacking Suite 9332 | -6/Zion | Entered Proximity Caves 9332 | -5/Proximity Caves | Accompanied by 7 allies 9342 | -5/Proximity Caves | Learned Factory emergency access door positions 9434 | -5/Proximity Caves | Discovered exit to Factory (range 15) 9438 | -5/Proximity Caves | Entered Factory 9438 | -5/Factory | Evolved 2 slots: Utility x2 9525 | -5/Factory | Identified Hacking Drone Bay 9608 | -5/Factory | Retrieved Zion intel report: Depthwide Sectors/-5 9609 | -5/Factory | Zion Heavy squad teleported in 9754 | -5/Factory | Found Prototype Protection 9754 | -5/Factory | Identified Zio. Weapon Casing 9792 | -5/Factory | Unchained authorized (GL-D0S) 10073 | -5/Factory | Lost 3 parts (2n1u) 10085 | -5/Factory | System corruption reached 10% 10092 | -5/Factory | Build established: Scavenger-Scout 10123 | -5/Factory | Zion Trap Resupply teleported in 10187 | -5/Factory | Cargo convoy interrupted 10237 | -5/Factory | Destroyed 7 combat bots 10248 | -5/Factory | Core integrity fell below 50% 10278 | -5/Factory | Lost 9 parts (2p4n2u1w) 10283 | -5/Factory | Core integrity fell below 20% 10290 | -5/Factory | Destroyed by Dirty Bomb Trap Last Messages --------------- 10284_ Dropped Explosive Trap. 10284_ Installed Explosive Trap. 10285_ S-27 Virus triggered Segregator Trap. 10285_ Arcs of energy rise from the floor. 10285_ Autogun blown off. 10285_ Lgt. Nuclear Core blown off. 10285_ VTOL Module blown off. 10286_ A-27 Freighter triggered Explosive Trap. 10286_ An explosion rips through the floor. 10287_ Dropped Dirty Bomb Trap. 10287_ R-10 Processor collects VTOL Module+. 10288_ Installed Dirty Bomb Trap. 10288_ K-01 Serf collects debris. 10288_ Cld. Gravmag System destroyed. 10289_ System corrupted: Matter fused (-6). 10289_ Acquired 41 matter. 10289_ U-05 Engineer lays Concrete. 10290_ B-60 Warrior triggered Dirty Bomb Trap. 10290_ An explosion rips through the floor. 10290_ Imp. Sensor Array destroyed. Map ----- +----------------------------------------------------+ | ?????????????????????????????????????????????????? | | ?????????????????????????????????????????????????? | | ?????????????????????????????????????????????????? | | ?????????????????????????????????????????????????? | | ?????????????????????????????????????????????????? | | ???????????????????????#?????????????????????????? | | ??????????????????????? ???????????????????????? | | ??????????????????????? " ???????????????????????? | | ??????????????????????? ???????????????????????? | | ???????????????????????# #???????????????????????? | | ???????????????????????# #???????????????????????? | | ???????????????????##### ##??????????????????????? | | ???????????????????# #??????????????????????? | | ???????????????????# +??????????????????????? | | ###????????????????# #??????????????????????? | | ###############+## #??????+??+????????????? | | #??????????????????????? | | #??????????????????????? | | <<< #??????????????????????? | | << #??????????????????????? | | < << #??????????????????????? | | // ^ < u " #??????????????????????? | | // < u "T" #??????????????????????? | | /! << u A #??????????????????????? | | k i ###########????????????? | | xw gb%@ ??? | | ######## R [ g #?????????? | | ??#####"+### ### * ##+####### "" #?????????? | | ??# # #?# [ ???????????Y" #?????????? | | ??# + #?## ???????????????????????? | | ??# # #??## #??????????????????????? | | ??# # #???# +??????????????????????? | | ??# + #???# """" #??????????????????????? | | ??# # #???# """""" #??????????????????????? | | ??# # #???# """""" "??????????????????????? | | ??# # #???# """""" ##?????????????????????? | | ??+ # #???# #??????????????????????? | | ??##+####### #???##########??????????????????????? | | ???# ??????# #???????????????????????????????????? | | ???#???????#+#???????????????????????????????????? | | ?????????????????????????????????????????????????? | | ?????????????????????????????????????????????????? | | ?????????????????????????????????????????????????? | | ?????????????????????????????????????????????????? | | ?????????????????????????????????????????????????? | | ?????????????????????????????????????????????????? | | ?????????????????????????????????????????????????? | | ?????????????????????????????????????????????????? | | ?????????????????????????????????????????????????? | | ?????????????????????????????????????????????????? | +----------------------------------------------------+ Best States ------------- Heat Dissipation 63 Energy Generation 34 Energy Capacity 560 Matter Stores 300 Matter Capacity 700 Sight Range 22 Robot Scan Range 15 Terrain Scan Density 10 Armor Coverage 600 Weapon Cycling 20 Evasion (%) 66 Melee Accuracy 6 Core Analysis 6 Recoil Reduction 2 Offensive Hacking 26 Defensive Hacking 10 Item Schematics ----------------- Aerolev Unit | -7/Factory | Scanalyzed Combat Drone Bay | -7/Data Miner | Free Lgt. Regenerative Plating | -7/Data Miner | Free Cld. Cesium-ion Thruster | -7/Data Miner | Free Gravity Neutralizer | -7/Data Miner | Free Antimatter Cannon | -7/Data Miner | Free Linear Gravjet | -7/Data Miner | Free Adv. System Shield | -7/Data Miner | Free Matter Neutralizer | -7/Data Miner | Free Hvy. Shock Bomb Launcher | -7/Data Miner | Free Flamer | -6/Zion | Free Hvy. Riot Gun | -6/Zion | Free Robot Schematics ------------------ R-10 Processor | -7/Data Miner | Free G-47 Trooper | -7/Data Miner | Free G-50 Soldier | -7/Data Miner | Free Y-64 Sentinel | -7/Data Miner | Free Y-54 Guardian | -7/Data Miner | Free Fabricated ------------ Adv. Hardlight Generator | x2 | -6/Factory | Preloaded Cld. Cesium-ion Thruster | x1 | -6/Factory Repaired ---------- Lgt. Treads | 34% | -10/Materials Lgt. Treads | 42% | -10/Materials VTOL Module | 20% | -10/Materials Studied --------- VTOL Module | -7/Factory | Hacked Xenon Bombardment Thruster | -7/Factory | Hacked Powered Hammer | -7/Factory | Hacked Hvy. Ion Cannon | -7/Factory | Hacked Imp. EM Pulse Cannon | -7/Factory | Hacked Alien Tech Used ----------------- Core Expander Achievements -------------- None Challenges ------------ None Game ------ Seed ShockboltZipCannon Manual? 0 Play Time 01:47:14 Cumulative 1177.7 hours Start 2026.04.24 @ 22:53:19 End 2026.04.25 @ 00:42:34 Sessions 1 Manual Loads 0 Difficulty Rogue Special Mode None Game No. 368 Rogue 366 Adventurer 2 Explorer 0 Win Type - Total 91 Types 25/22/20/1/1/1/15/2/1/3 Lore% 98 Gallery% 92 Achievement% 87 Wizard Run 0 Options --------- Layout 0 ASCII 0 Keyboard 1 Movement Numpad Keybinds 0 Fullscreen 1 Font 24/Smallcaps Map View 76x50 Zoom Use 0% Tactical HUD 1 Map Filters NONE Filters NONE Steam 1 RUN: cd2c23b0-0ae0-45c3-b10d-e6ae8fede669